bitfinex/quotes_ETHUSD_20241120
["timestamp","ask_amount","ask_price","bid_price","bid_amount"]
[1732067018486,0.7938,3103.3,3102.4,0.05027435]
[1732067018690,0.7938,3103.3,3102.5,0.0820752]
[1732067018881,0.7938,3103.3,3102.5,0.43114962]
[1732067019404,0.7938,3103.3,3102.6,0.05025756]
[1732067019767,0.7938,3103.3,3102.7,0.08207348]
[1732067020113,0.7938,3103.3,3102.5,0.05025754]
[1732067020297,0.7938,3103.3,3102.8,0.08207348]
[1732067020549,0.7938,3103.3,3102.5,0.05025754]
[1732067020850,0.7938,3103.3,3102.9,0.08207348]
[1732067021054,0.7938,3103.3,3102.4,0.35839468]
[1732067021258,0.7938,3103.3,3102.6,0.08207348]
[1732067021459,0.7938,3103.3,3102.4,0.35839468]
[1732067021978,0.7938,3103.3,3102.5,0.08207348]
[1732067022776,0.08056943,3103.2,3102.5,0.08207348]
[1732067022967,0.7604,3103.1,3102.5,0.08207348]
[1732067023480,0.7604,3103.1,3102.5,0.4261203]
[1732067024178,0.08056943,3103.0,3102.5,0.08207348]
[1732067024391,0.7604,3102.9,3102.5,0.08207348]
[1732067024592,0.7604,3102.9,3101.8,0.35839468]
[1732067024742,0.7604,3102.9,3102.6,0.08214491]
[1732067025087,0.7604,3102.9,3101.8,0.40867028]
[1732067025386,0.7604,3102.9,3102.7,0.08214491]
[1732067025576,0.7604,3102.9,3101.8,0.48823192]
[1732067025777,0.7604,3102.9,3102.8,0.08214491]
[1732067025991,0.7604,3102.9,3102.0,3.0]
[1732067026291,0.7604,3102.9,3102.0,0.34882319]
[1732067026488,0.7604,3102.9,3102.1,0.08214491]
[1732067027006,0.7604,3102.9,3102.2,0.08214491]
[1732067027582,0.7604,3102.9,3102.3,0.08216557]
[1732067027789,0.7604,3102.9,3102.3,1.24156025]
[1732067028054,0.7604,3102.9,3102.3,1.20965986]
[1732067028213,0.7604,3102.9,3102.4,0.08215954]
[1732067029308,0.7604,3102.9,3102.4,0.44055422]
[1732067030202,0.7604,3102.9,3102.4,0.08215954]
[1732067030549,0.7604,3102.9,3102.2,3.0]
[1732067030748,0.7604,3102.9,3102.0,0.37137469]
[1732067030749,0.7604,3102.9,3102.5,0.08214577]
[1732067030959,0.7604,3102.9,3101.9,0.43847355]
[1732067030960,0.7604,3102.9,3101.9,0.35839468]
[1732067031184,0.7604,3102.9,3101.5,0.3211]
[1732067031185,0.08058748,3102.8,3102.6,0.08214577]
[1732067031391,0.7604,3102.7,3101.6,0.67949468]
[1732067031793,0.7604,3102.7,3101.7,0.08214577]
[1732067032353,0.7604,3102.7,3101.7,3.08214577]
[1732067032553,0.7604,3102.7,3101.7,0.46634424]
[1732067032866,0.7604,3102.7,3101.7,3.08214577]
[1732067033060,0.7604,3102.7,3101.7,0.08214577]
[1732067033561,0.8409908,3102.6,3101.7,0.08214577]
[1732067034284,0.8409908,3102.6,3101.8,0.08224822]
[1732067034509,0.8409908,3102.6,3101.2,0.3211]
[1732067034653,0.8409908,3102.6,3101.9,0.08224822]
[1732067034850,0.8409908,3102.6,3101.2,0.67949468]
[1732067035089,0.8409908,3102.6,3102.0,0.08224822]
[1732067035395,0.8409908,3102.6,3101.2,0.75870577]
[1732067035396,0.7604,3102.4,3101.2,0.67949468]
[1732067035592,0.7604,3102.2,3100.8,0.67949468]
[1732067035797,0.84101256,3102.1,3101.3,0.08226028]
[1732067035970,0.84101256,3102.1,3100.8,0.67949468]
[1732067036455,0.84101256,3102.1,3100.9,0.08226028]
[1732067036856,0.84101256,3102.1,3100.4,0.801]
[1732067036857,0.7604,3101.9,3100.5,0.3211]
[1732067037054,0.84102167,3101.8,3101.0,0.08226028]
[1732067037261,0.84102167,3101.8,3100.5,0.3211]
[1732067037499,0.84102167,3101.8,3101.1,0.08230335]
[1732067037672,0.7604,3101.6,3100.4,0.35839468]
[1732067037867,0.7604,3101.4,3101.2,0.08230507]
[1732067038096,0.7604,3101.4,3100.4,0.69423415]
[1732067038262,0.7604,3101.4,3101.3,0.08230507]
[1732067038599,0.7604,3101.4,3100.4,0.35839468]
[1732067038797,0.7604,3101.4,3100.4,0.78644186]
[1732067039089,0.7604,3101.4,3100.5,0.44073422]
[1732067040884,0.7604,3101.4,3100.6,0.05038252]
[1732067041086,0.7604,3101.4,3100.6,0.13274016]
[1732067041351,0.7604,3101.4,3100.6,0.49113484]
[1732067041590,0.7604,3101.4,3100.6,0.44075232]
[1732067041900,0.7604,3101.4,3100.7,1.18766268]
[1732067042056,0.7604,3101.4,3100.8,0.42700203]
[1732067042700,0.7604,3101.4,3100.9,0.08235505]
[1732067042862,0.7604,3101.4,3100.7,1.13729468]
[1732067043062,0.7604,3101.4,3101.0,0.08235505]
[1732067043274,0.7604,3101.4,3100.7,1.13729468]
[1732067043482,0.7604,3101.4,3101.1,0.08235505]
[1732067043795,0.7604,3101.4,3100.7,1.21722708]
[1732067043956,0.8217,3101.2,3100.2,0.34966598]
[1732067044159,0.8217,3101.2,3099.8,0.7789]
[1732067044160,0.8217,3101.0,3100.8,0.08235505]
[1732067044358,0.8217,3101.0,3099.9,0.05038938]
[1732067044802,0.8217,3101.0,3100.0,0.08241448]
[1732067045388,0.8217,3101.0,3100.0,0.43571428]
[1732067045600,0.8217,3101.0,3100.1,0.40369604]
[1732067045957,0.8217,3101.0,3100.2,0.46602315]
[1732067046397,0.8217,3101.0,3100.2,0.0824455]
[1732067046694,0.8217,3100.8,3099.5,0.34966598]
[1732067046944,0.90234702,3100.7,3100.3,0.0824636]
[1732067047083,0.90234702,3100.7,3098.8,0.05044373]
[1732067047283,0.90234702,3100.7,3100.4,0.0824636]
[1732067047528,0.90234702,3100.7,3099.0,0.05043013]
[1732067047938,0.90234702,3100.7,3099.1,0.3532998]
[1732067048229,0.90234702,3100.7,3099.3,3.0]
[1732067048391,0.90234702,3100.7,3099.4,0.30504511]
[1732067048729,0.90234702,3100.7,3099.5,0.08247998]
[1732067049588,4.12751702,3100.7,3099.5,0.08247998]
[1732067049794,0.8175,3100.5,3099.5,0.08247998]
[1732067050102,0.8175,3100.3,3098.7,0.12978477]
[1732067050304,0.8175,3100.1,3099.6,0.07986663]
[1732067050618,0.89816353,3100.0,3098.3,0.05047047]
[1732067050823,0.89816353,3100.0,3098.4,0.38570705]
[1732067050995,0.89816353,3100.0,3098.5,0.05048436]
[1732067051199,0.89816353,3100.0,3098.5,0.13035099]
[1732067052417,0.89816353,3100.0,3098.5,0.48195679]
[1732067052612,0.89816353,3100.0,3098.5,0.13035099]
[1732067052818,0.89816353,3100.0,3098.5,0.07986663]
[1732067055438,0.8175,3099.6,3098.5,3.07986663]
[1732067055762,0.8175,3099.4,3098.5,0.07986663]
[1732067055937,0.8175,3099.4,3098.5,3.07986663]
[1732067056547,0.89817919,3099.4,3098.5,0.07986663]
[1732067056849,0.89817919,3099.4,3098.5,3.0]
[1732067057059,0.89817919,3099.4,3098.1,0.1427049]
[1732067057353,0.89817919,3099.4,3098.5,3.0]
[1732067057504,0.89817919,3099.4,3098.2,0.0799708]
[1732067057701,0.8175,3099.2,3098.1,0.1427049]
[1732067057905,0.8175,3099.0,3098.3,0.0799708]
[1732067058107,0.8175,3098.8,3098.1,0.1427049]
[1732067058417,3.23634,3099.5,3098.1,0.1427049]
[1732067058418,0.8175,3098.6,3098.1,0.1427049]
[1732067058622,0.89819165,3098.5,3098.1,0.1427049]
[1732067059456,0.8175,3098.5,3098.1,0.1427049]
[1732067060846,0.09070512,3098.9,3098.1,0.1427049]
[1732067060847,0.90080515,3098.4,3098.1,0.1427049]
[1732067062174,0.8201,3098.4,3098.1,0.1427049]
[1732067062525,0.8201,3098.4,3098.2,0.08022963]
[1732067062753,0.8201,3098.4,3098.1,0.1427049]
[1732067062952,0.8201,3098.4,3098.2,0.08022963]
[1732067063262,0.8201,3098.4,3098.1,0.1427049]
[1732067063762,0.8201,3098.4,3098.2,0.08021681]
[1732067064165,0.8201,3098.4,3098.1,0.1427049]
[1732067064657,0.8201,3098.4,3098.2,0.08021681]
[1732067065662,0.0806926,3099.2,3098.1,0.1427049]
[1732067065663,0.7659,3098.7,3098.1,0.1427049]
[1732067065822,0.7659,3099.1,3098.1,0.1427049]
[1732067066017,0.7659,3099.1,3098.2,0.08021681]
[1732067069035,0.7659,3098.9,3098.2,0.08021681]
[1732067069236,0.7659,3098.7,3098.2,0.08021681]
[1732067069446,0.08069384,3098.6,3098.2,0.08021681]
[1732067070528,0.7659,3098.5,3098.2,0.08021681]
[1732067070720,0.08069771,3098.4,3098.2,0.08021681]
[1732067071239,0.7659,3098.5,3098.2,0.08021681]
[1732067071455,0.08069771,3098.4,3098.2,0.08021681]
[1732067073626,0.7659,3098.5,3098.2,0.08021681]
[1732067074125,0.7659,3099.1,3098.2,0.08021681]
[1732067074327,0.08069119,3099.0,3098.2,0.08021681]
[1732067074524,0.08069119,3099.0,3098.1,0.1427049]
[1732067074753,0.08069119,3099.0,3098.2,0.08017323]
[1732067075455,0.08069119,3099.0,3098.1,0.1427049]
[1732067075771,0.08069119,3099.0,3098.2,0.08017323]
[1732067076770,0.08069119,3099.0,3098.1,0.1427049]
[1732067076972,0.7659,3098.9,3098.2,0.08017323]
[1732067077273,0.7659,3098.7,3098.2,0.08017323]
[1732067077571,0.08069125,3098.6,3098.2,0.08017323]
[1732067079329,1.3077,3098.5,3098.2,0.08017323]
[1732067079530,1.3077,3098.5,3098.1,0.1427049]
[1732067079531,0.7577,3098.3,3098.1,0.1427049]
[1732067079762,0.83841197,3098.2,3098.1,0.1427049]
[1732067080613,3.22842,3097.5,3096.9,0.005]
[1732067080728,0.7577,3097.3,3096.9,0.005]
[1732067080930,0.08074518,3097.2,3096.9,0.005]
[1732067081288,0.55,3097.0,3096.9,0.005]
[1732067081569,0.55,3097.0,3096.6,0.005]
[1732067081570,3.78924,3096.7,3096.6,0.005]
[1732067081868,0.7577,3096.3,3094.3,0.05068056]
[1732067082058,0.01,3096.0,3094.1,0.7968]
[1732067082259,0.55,3095.8,3094.1,0.7968]
[1732067082426,0.7577,3095.5,3094.1,0.7968]
[1732067082628,0.08078817,3095.4,3094.1,0.7968]
[1732067083168,0.08078817,3095.4,3093.8,0.05076893]
[1732067083471,0.7577,3095.2,3093.8,0.05077386]
[1732067083768,0.83849637,3095.2,3093.8,0.05077386]
[1732067083939,0.83849637,3095.2,3093.0,0.01]
[1732067083940,0.55,3094.9,3092.9,0.84757386]
[1732067084272,0.08080479,3094.8,3093.2,0.7968]
[1732067084517,0.08080479,3094.8,3093.3,0.05081424]
[1732067084709,0.08080479,3094.8,3093.4,0.07271687]
[1732067084902,0.08080479,3094.8,3093.5,0.05081419]
[1732067085104,0.08079796,3094.9,3093.6,0.7968]
[1732067085426,0.7577,3095.0,3093.7,0.12352225]
[1732067085830,0.08079453,3094.9,3093.7,0.12352225]
[1732067086048,3.22921,3096.8,3093.7,0.12352225]
[1732067086049,0.7577,3095.9,3093.8,0.7968]
[1732067086343,0.7577,3095.9,3093.8,1.17106215]
[1732067086344,0.7577,3095.7,3093.8,1.17106215]
[1732067086550,0.08078678,3095.6,3093.9,0.07271687]
[1732067088045,0.08078678,3095.6,3094.0,0.847579]
[1732067088349,0.08078678,3095.6,3094.2,3.0]
[1732067088494,0.08078678,3095.6,3094.3,0.3]
[1732067088691,0.08078678,3095.6,3094.4,0.07271687]
[1732067089112,0.08078678,3095.6,3094.5,0.7968]
[1732067089308,0.08078678,3095.6,3094.6,0.07282018]
[1732067089844,0.7577,3096.2,3094.8,0.7968]
[1732067090044,0.7577,3096.2,3095.0,3.0]
[1732067090352,0.7577,3096.2,3095.2,3.0]
[1732067090506,0.7577,3096.6,3095.3,0.0728143]
[1732067090855,0.08075412,3096.5,3095.4,0.7968]
[1732067091394,0.08075412,3096.5,3095.5,0.0728143]
[1732067091607,0.7577,3096.6,3095.6,0.38696143]
[1732067092054,0.7577,3096.6,3095.7,0.07284194]
[1732067092364,0.7577,3096.6,3095.5,3.0]
[1732067092516,0.7577,3096.6,3095.4,0.7968]
[1732067092858,0.7577,3097.1,3095.7,3.0]
[1732067093063,0.7577,3097.1,3095.8,0.3]
[1732067093064,0.08074221,3097.0,3095.8,0.3]
[1732067093266,0.08074221,3097.0,3095.8,0.37282095]
[1732067093433,0.08074221,3097.0,3095.8,0.07282095]
[1732067093851,0.83844054,3097.1,3095.9,0.05066818]
[1732067094173,0.7577,3097.1,3095.8,0.05066665]
[1732067094323,0.7577,3097.1,3095.9,0.37788762]
[1732067094729,0.08073552,3097.0,3095.9,0.37788762]
[1732067095217,0.08073552,3097.0,3095.9,0.07282095]
[1732067095695,0.08073552,3097.0,3095.4,0.84747984]
[1732067096125,0.7577,3097.1,3095.7,3.0]
[1732067096432,0.08074301,3097.0,3095.7,3.0]
[1732067096628,0.08074301,3097.0,3095.8,0.37279829]
[1732067097066,0.08074301,3097.0,3095.8,0.07279829]
[1732067098053,0.08074301,3097.0,3095.7,3.0]
[1732067098460,0.08074301,3097.0,3095.8,0.07280333]
[1732067098825,0.7577,3097.1,3095.9,0.05067379]
[1732067099066,0.7577,3097.1,3095.9,0.31234771]
[1732067099241,0.08073903,3097.0,3095.9,0.31234771]
[1732067099422,0.08073903,3097.0,3096.0,0.07279493]
[1732067099769,0.08073903,3097.0,3095.5,0.05066463]
[1732067099929,0.08073903,3097.0,3095.8,3.0]
[1732067100330,0.08073903,3097.0,3095.9,0.07279661]
[1732067100637,0.08073903,3097.0,3095.8,3.0]
[1732067100851,0.08073903,3097.0,3096.0,0.07279661]
[1732067101054,0.08073903,3097.0,3095.8,3.0]
[1732067101223,0.08073903,3097.0,3096.1,0.07279661]
[1732067101423,0.08073903,3097.0,3095.8,3.0]
[1732067101624,0.08073903,3097.0,3096.2,0.07279661]
[1732067101861,0.7672,3096.9,3095.8,3.0]
[1732067102064,0.7672,3096.9,3096.3,0.07279661]
[1732067102248,0.7672,3096.9,3095.5,0.05066463]
[1732067102420,0.7672,3096.9,3095.8,3.0]
[1732067102622,0.7672,3096.9,3095.8,3.3]
[1732067102867,0.7672,3096.9,3095.9,0.07279661]
[1732067104392,0.7672,3096.9,3095.8,3.0]
[1732067104566,0.7672,3096.9,3096.0,0.39384961]
[1732067105165,0.7672,3096.9,3096.1,0.8165]
[1732067105375,0.0807425,3097.4,3096.2,0.3211]
[1732067105376,0.7672,3097.3,3096.2,0.3211]
[1732067105522,0.7672,3097.3,3096.4,0.3211]
[1732067105968,0.7672,3097.3,3096.5,0.0727429]
[1732067106349,0.93167425,3097.3,3096.5,0.0727429]
[1732067106664,0.7672,3097.3,3096.5,0.0727429]
[1732067107036,0.7672,3097.3,3096.3,0.3211]
[1732067107230,0.7672,3097.3,3096.6,0.0727429]
[1732067107478,0.7672,3097.3,3096.4,3.37172836]
[1732067107780,0.7672,3097.3,3096.5,0.65827284]
[1732067107985,0.7672,3097.3,3096.6,0.0506283]
[1732067108277,0.7672,3097.3,3096.6,0.0727429]
[1732067109037,0.7672,3097.3,3096.6,0.12337117]
[1732067109238,0.7968,3097.7,3096.6,0.12337117]
[1732067109474,0.08072391,3098.2,3096.8,1.1376]
[1732067109682,0.7968,3098.2,3097.1,0.3211]
[1732067109974,0.08071005,3098.8,3097.5,0.3211]
[1732067110184,0.87751005,3098.8,3097.5,0.65321]
[1732067110545,0.87751005,3098.8,3097.6,0.3938429]
[1732067112442,0.7542,3098.7,3097.6,0.3938429]
[1732067112638,0.7542,3098.7,3097.6,0.0727429]
[1732067112838,0.7542,3098.7,3097.6,0.12330542]
[1732067113144,0.91737101,3098.7,3097.6,0.51494596]
[1732067113341,0.7542,3098.7,3098.0,3.0]
[1732067113578,0.08069651,3099.6,3098.0,3.0]
[1732067113579,0.7542,3099.5,3098.1,0.84363989]
[1732067113783,0.7542,3099.5,3098.1,1.30074678]
[1732067113987,0.7542,3099.5,3098.1,0.91638279]
[1732067114283,0.7542,3099.4,3098.3,3.0]
[1732067114504,0.83487647,3099.3,3098.1,0.0727429]
[1732067114668,0.83487647,3099.3,3098.4,0.0725877]
[1732067115198,0.55,3099.2,3097.5,0.8436331]
[1732067115520,0.55,3099.2,3098.5,0.0725877]
[1732067115521,0.83489253,3099.1,3098.5,0.0725877]
[1732067115797,0.83489253,3099.1,3097.8,3.0]
[1732067115959,0.83489253,3099.1,3097.6,0.0505403]
[1732067116160,0.83489253,3099.1,3097.9,0.0725877]
[1732067116369,0.83489253,3099.1,3097.6,0.0505403]
[1732067116577,0.83489253,3099.1,3098.0,0.0725877]
[1732067116903,0.83489253,3099.1,3097.6,0.0505403]
[1732067117059,0.83489253,3099.1,3098.1,0.0725877]
[1732067117259,0.83489253,3099.1,3097.6,0.0505403]
[1732067117501,0.83489253,3099.1,3098.2,0.0725877]
[1732067117654,0.83489253,3099.1,3097.6,0.0505403]
[1732067117859,0.83489253,3099.1,3098.3,0.0725877]
[1732067118169,0.7542,3098.9,3098.4,0.0725877]
[1732067118372,0.7542,3098.7,3097.3,0.0505403]
[1732067118668,0.55,3099.0,3097.3,0.0505403]
[1732067118669,0.7542,3098.5,3097.3,0.0505403]
[1732067118905,0.7542,3098.5,3097.3,0.43490433]
[1732067119254,0.7542,3098.5,3097.4,0.55]
[1732067119470,0.7542,3098.5,3097.5,0.06053249]
[1732067119655,0.7542,3098.5,3097.5,0.05053249]
[1732067120096,0.7542,3099.2,3097.7,0.7931]
[1732067120296,0.7542,3099.2,3098.2,3.0]
[1732067120595,0.7542,3099.2,3097.8,0.05051918]
[1732067120795,0.7542,3099.2,3098.2,3.0]
[1732067121099,0.7542,3099.2,3098.5,0.7931]
[1732067121300,0.7542,3099.2,3098.6,0.05050167]
[1732067122054,0.7542,3099.7,3098.7,3.0]
[1732067122315,0.7542,3099.6,3098.8,0.05048856]
[1732067123093,0.7542,3099.6,3098.7,3.0]
[1732067123908,0.7542,3099.6,3098.8,0.05048851]
[1732067124780,0.7781,3100.6,3099.3,3.0]
[1732067125091,0.7781,3100.6,3099.4,0.05043942]
[1732067125915,0.7781,3100.6,3098.9,1.1493]
[1732067125916,0.85874744,3100.6,3099.2,0.08154902]
[1732067126087,0.85874744,3100.6,3099.3,3.05044474]
[1732067126501,0.85874744,3100.6,3099.3,0.05044474]
[1732067126691,0.85874744,3100.6,3099.3,3.05044474]
[1732067127027,0.85874744,3100.6,3099.3,3.35548921]
[1732067127506,0.85874744,3100.6,3099.3,0.35548921]
[1732067127715,0.85874744,3100.6,3099.3,3.05044474]
[1732067127883,0.85874744,3100.6,3099.3,0.05044474]
[1732067128075,0.85874744,3100.6,3099.0,0.05044467]
[1732067128281,0.7781,3100.6,3099.3,0.8711]
[1732067128582,0.7781,3100.6,3099.9,3.0]
[1732067128784,0.7781,3100.6,3099.9,0.3]
[1732067129090,0.01,3100.3,3099.4,0.05041036]
[1732067129291,0.01,3100.3,3098.2,3.8482]
[1732067129292,0.7781,3100.0,3098.3,0.05044838]
[1732067129505,0.7781,3099.6,3098.2,0.38482]
[1732067129705,0.55,3099.7,3098.0,0.05052186]
[1732067129706,0.7781,3099.4,3098.0,0.05052186]
[1732067129914,0.7781,3099.2,3098.0,0.05052186]
[1732067130506,0.7781,3099.2,3098.8,3.0]
[1732067130704,0.7781,3099.0,3097.6,0.8282]
[1732067130996,0.7781,3099.0,3097.8,0.3211]
[1732067131238,0.7781,3099.0,3097.9,0.05051485]
[1732067131732,0.7781,3099.0,3098.0,0.06250653]
[1732067131904,0.7781,3099.0,3098.1,0.05051447]
[1732067132309,0.7781,3099.0,3098.2,0.06250653]
[1732067133270,0.7781,3099.0,3098.5,3.0]
[1732067133743,0.7781,3099.0,3098.7,3.0]
[1732067133893,0.7781,3100.1,3098.9,3.0]
[1732067134106,0.7781,3099.9,3098.5,0.3]
[1732067134437,0.7781,3099.9,3098.9,3.0]
[1732067134737,0.7781,3099.9,3098.6,0.05048885]
[1732067134895,0.7781,3099.9,3099.0,3.06250653]
[1732067135908,0.7781,3099.7,3099.0,3.06250653]
[1732067136108,0.85876717,3099.6,3099.0,0.06250653]
[1732067136316,3.23549,3100.4,3099.0,0.06250653]
[1732067136317,0.7781,3099.4,3099.0,0.06250653]
[1732067136524,0.7781,3099.2,3097.9,0.87871365]
[1732067136844,0.7781,3099.0,3097.9,0.8282]
[1732067137058,0.7781,3099.0,3098.0,0.05051439]
[1732067137654,0.7781,3099.0,3098.3,3.0]
[1732067137950,0.7781,3099.0,3098.0,0.05051439]
[1732067138156,0.7781,3099.0,3098.3,3.0]
[1732067138532,0.7781,3099.0,3098.3,3.3]
[1732067138732,0.7781,3099.0,3098.3,0.3]
[1732067138963,0.7781,3099.0,3098.0,0.05051439]
[1732067139252,0.7781,3099.0,3098.3,3.0]
[1732067140255,0.7781,3099.0,3098.0,0.05051439]
[1732067141152,0.7781,3099.0,3098.3,3.0]
[1732067142018,0.7781,3099.0,3098.0,0.05051439]
[1732067142463,0.7781,3099.0,3097.8,0.05051433]
[1732067143018,0.7781,3099.0,3098.3,3.0]
[1732067143213,0.7781,3099.0,3098.3,0.3]
[1732067143457,0.7781,3099.0,3098.3,3.0]
[1732067144121,0.7781,3099.0,3097.8,0.05051433]
[1732067144516,0.7781,3099.0,3098.3,3.0]
[1732067144714,0.7781,3099.0,3097.8,0.05051433]
[1732067144715,0.7781,3099.0,3098.5,3.0]
[1732067145017,0.7781,3099.0,3098.6,0.35050289]
[1732067145218,0.7557,3100.1,3098.9,3.0]
[1732067145535,4.46934235,3101.3,3099.0,0.05047759]
[1732067145536,0.7557,3099.9,3099.0,0.05047759]
[1732067145861,0.7557,3099.9,3098.6,0.811]
[1732067146154,0.7557,3099.9,3098.0,0.01]
[1732067146155,0.7557,3099.7,3098.9,3.0]
[1732067146362,0.7557,3099.5,3098.9,3.0]
[1732067146544,0.7557,3099.5,3098.4,0.05048817]
[1732067146858,0.7557,3099.5,3098.9,3.0]
[1732067147079,0.7557,3099.5,3098.4,0.05048817]
[1732067147556,0.7557,3099.5,3098.2,0.05048813]
[1732067147976,0.7557,3099.5,3099.0,0.3211]
[1732067148460,0.7557,3099.5,3099.1,0.06264976]
[1732067149230,0.7557,3099.5,3099.0,0.3211]
[1732067149453,0.7557,3099.5,3099.2,0.06264976]
[1732067149767,0.7557,3099.5,3099.3,0.06264976]
[1732067149922,0.7557,3099.5,3099.0,0.3211]
[1732067150123,0.7557,3099.5,3099.1,0.06264976]
[1732067150652,0.7557,3099.5,3099.3,0.3211]
[1732067150854,0.7557,3099.5,3099.3,3.3211]
[1732067151027,0.7557,3099.5,3099.4,0.06263385]
[1732067151931,0.7557,3099.5,3098.9,3.0]
[1732067152142,0.7557,3099.5,3099.0,0.06262966]
[1732067153382,0.7557,3099.5,3098.3,0.45343545]
[1732067153551,0.7557,3099.5,3099.1,0.06260285]
[1732067153877,0.7557,3099.5,3098.3,0.45343545]
[1732067154247,0.7557,3099.5,3098.4,0.06260202]
[1732067154434,0.7557,3099.5,3098.5,0.05047761]
[1732067154640,0.7557,3099.5,3099.0,3.0]
[1732067154843,0.7557,3099.5,3098.6,0.06260202]
[1732067155179,0.7557,3099.5,3099.0,3.0]
[1732067155397,0.7557,3099.5,3099.0,3.3]
[1732067155539,0.7557,3099.5,3098.7,0.3211]
[1732067155744,0.7557,3099.5,3099.0,3.0]
[1732067156142,0.7557,3099.5,3098.3,0.37157766]
[1732067156476,0.7557,3099.5,3098.5,0.3211]
[1732067156778,0.7557,3099.5,3098.7,0.3211]
[1732067156979,0.7557,3099.5,3098.7,0.37157633]
[1732067157286,0.7557,3099.5,3098.8,0.06260537]
[1732067157981,0.7557,3099.5,3099.1,0.3211]
[1732067158480,0.7557,3099.5,3099.2,0.06260537]
[1732067158836,0.7557,3099.5,3099.2,0.40097591]
[1732067159093,0.7557,3100.7,3099.2,0.06260537]
[1732067159375,0.7557,3100.5,3099.4,3.0]
[1732067159590,0.7557,3100.3,3099.5,0.3211]
[1732067159803,0.7557,3100.1,3099.5,0.38369197]
[1732067160697,0.91164844,3100.0,3099.5,0.06259197]
[1732067161074,0.91164844,3100.0,3098.4,0.05044714]
[1732067161391,0.91164844,3100.0,3098.5,0.11093377]
[1732067161565,0.91164844,3100.0,3098.6,0.37157523]
[1732067161765,0.831,3100.0,3098.7,0.05047523]
[1732067161969,0.831,3099.8,3099.1,0.3211]
[1732067162388,0.831,3099.8,3098.7,0.05047523]
[1732067162555,0.831,3099.8,3099.2,0.06046435]
[1732067162757,0.831,3099.8,3099.1,0.3211]
[1732067163005,0.831,3099.8,3099.3,0.06046435]
[1732067163337,0.831,3099.8,3099.1,0.3211]
[1732067163505,0.831,3099.8,3099.4,0.06046435]
[1732067163690,0.70416814,3100.5,3098.3,0.3211]
[1732067163691,0.831,3099.6,3098.3,0.3211]
[1732067163889,0.831,3099.4,3098.3,0.3211]
[1732067164206,0.55,3099.9,3098.7,3.3211]
[1732067164410,0.831,3099.6,3098.7,0.3211]
[1732067164593,0.831,3099.4,3098.7,0.3211]
[1732067165319,0.55,3099.7,3098.1,0.3211]
[1732067165320,0.91167547,3099.3,3098.1,0.3211]
[1732067165878,0.831,3099.0,3098.1,0.3211]
[1732067166079,0.831,3098.8,3096.8,0.01]
[1732067166278,0.831,3098.6,3096.8,0.05056191]
[1732067166503,0.831,3098.4,3096.8,0.05056191]
[1732067166713,0.91169991,3098.3,3096.8,0.05056191]
[1732067167014,0.91169991,3098.3,3096.8,0.06056191]
[1732067167428,0.91169991,3098.3,3097.7,3.0]
[1732067167591,0.831,3098.3,3096.8,0.06056191]
[1732067168109,0.55,3098.9,3096.8,0.06056191]
[1732067168110,0.831,3098.1,3096.8,0.06056191]
[1732067168311,0.831,3098.1,3097.7,3.0]
[1732067168688,0.831,3098.1,3096.8,0.06056191]
[1732067168892,0.831,3098.1,3097.7,3.0]
[1732067169184,0.831,3098.1,3096.8,0.05056191]
[1732067169389,0.8115,3097.9,3096.6,0.8101]
[1732067169688,0.8115,3097.7,3096.5,0.05059585]
[1732067169913,0.8115,3097.5,3096.3,0.05059703]
[1732067170082,0.8115,3097.5,3095.9,0.7716]
[1732067170083,0.8115,3097.5,3096.1,0.08100367]
[1732067170420,0.8115,3097.5,3096.0,0.05061203]
[1732067170620,0.8115,3097.3,3095.9,0.7716]
[1732067170923,0.8115,3097.1,3096.0,0.05064558]
[1732067171128,3.560568,3098.1,3096.0,0.05064558]
[1732067171129,0.89223039,3097.0,3096.0,0.05064558]
[1732067171288,0.8115,3097.0,3096.0,0.05064558]
[1732067172203,0.8115,3097.0,3095.7,0.05064385]
[1732067172584,0.8115,3097.0,3096.2,3.0]
[1732067172784,0.8115,3097.0,3096.2,0.3]
[1732067173030,0.8115,3097.0,3096.2,3.0]
[1732067173523,0.8115,3097.0,3095.7,0.05064385]
[1732067173524,0.8115,3097.0,3096.1,3.0]
[1732067173696,0.8115,3097.0,3095.7,0.05064387]
[1732067174088,0.8115,3097.0,3096.1,3.0]
[1732067174289,0.8115,3097.0,3096.2,0.3]
[1732067174598,0.8115,3097.0,3096.1,3.0]
[1732067174998,0.8115,3097.0,3095.7,0.05064387]
[1732067175339,0.8115,3097.0,3096.1,3.0]
[1732067175492,0.8115,3097.0,3096.1,3.3]
[1732067176491,0.8115,3097.0,3096.1,0.3]
[1732067176691,0.8115,3097.0,3096.1,3.0]
[1732067177193,0.8115,3097.0,3095.7,0.05064387]
[1732067177724,0.8115,3097.0,3096.1,3.0]
[1732067178286,0.8115,3097.0,3095.7,0.05064387]
[1732067178530,0.8115,3097.0,3096.2,0.06079109]
[1732067178739,0.8115,3097.0,3096.2,0.30607911]
[1732067178892,0.8115,3097.0,3096.3,0.06079109]
[1732067179603,0.8115,3098.4,3096.4,0.05064755]
[1732067179806,0.8115,3098.2,3096.4,0.45127833]
[1732067180004,0.89221111,3098.1,3096.5,0.7716]
[1732067180207,0.89221111,3098.1,3096.7,3.0]
[1732067180388,0.89221111,3098.1,3096.7,3.3]
[1732067180595,0.89221111,3098.1,3096.7,3.0]
[1732067180851,0.89221111,3098.1,3096.8,0.06079109]
[1732067181192,0.89221111,3098.1,3096.7,3.0]
[1732067181392,0.89221111,3098.1,3096.9,0.06078276]
[1732067181624,0.8922077,3098.0,3096.9,0.31113927]
[1732067181826,0.8922077,3098.0,3096.7,3.0]
[1732067181827,0.8922077,3098.0,3097.0,0.06078276]
[1732067181989,0.8922077,3098.0,3096.7,3.0]
[1732067182192,0.8922077,3098.0,3096.2,0.08092634]
[1732067182193,0.8922077,3098.0,3096.2,0.05059807]
[1732067182417,0.06238946,3097.9,3096.1,0.09129694]
[1732067182720,0.55,3098.2,3096.8,0.322]